bitfinex/quotes_ETHUSD_20241212
["timestamp","ask_amount","ask_price","bid_price","bid_amount"]
[1734019267958,2.92987116,3961.2,3959.0,1.58851]
[1734019268157,1.4944,3960.9,3959.0,1.58851]
[1734019268360,0.29298712,3961.1,3959.0,1.58851]
[1734019268959,0.12579097,3961.9,3959.4,1.4489]
[1734019269272,1.4944,3962.5,3960.4,1.4489]
[1734019269435,2.52343,3962.9,3960.4,1.4489]
[1734019269436,1.5844301,3962.9,3960.4,1.4489]
[1734019269637,1.5844301,3962.9,3960.9,1.527]
[1734019269835,1.5844301,3962.9,3960.7,2.92987116]
[1734019269836,1.5844301,3962.9,3961.1,1.4719]
[1734019270045,1.5844301,3962.9,3961.3,1.4719]
[1734019270046,0.1264301,3962.9,3961.3,1.4719]
[1734019270352,0.22251387,3963.4,3961.5,1.4719]
[1734019270353,0.12791923,3963.1,3961.5,1.4719]
[1734019270555,0.12791923,3963.1,3961.8,1.4745]
[1734019270737,0.12791923,3963.1,3961.9,1.4745]
[1734019270934,1.67416425,3963.6,3962.0,1.4745]
[1734019271167,1.67416425,3963.6,3961.9,8.73]
[1734019271168,1.79853927,3963.6,3962.2,1.4745]
[1734019274983,1.67133671,3963.6,3962.2,1.4745]
[1734019275907,0.55,3963.5,3962.2,1.4745]
[1734019276250,1.54696169,3963.6,3962.9,1.496]
[1734019276457,1.54696169,3963.6,3963.3,2.92987116]
[1734019276763,1.54696169,3963.6,3963.5,4.5479]
[1734019276972,20.15,3963.9,3963.6,1.5479]
[1734019277166,16.1501,3963.9,3963.8,9.47777116]
[1734019277365,1.4984,3964.3,3964.0,1.5479]
[1734019277588,1.4984,3964.3,3963.8,19.08334016]
[1734019277589,0.612,3964.7,3964.2,5.0]
[1734019277799,37.2,3965.4,3964.7,3.0]
[1734019277956,37.2,3965.4,3965.2,5.92987116]
[1734019278156,37.2,3965.4,3965.2,7.47777116]
[1734019278707,17.50581397,3965.4,3965.3,3.25]
[1734019279004,16.32464026,3965.4,3965.3,64.348723]
[1734019279289,16.32464026,3965.4,3965.3,50.995207]
[1734019279463,15.71874886,3965.4,3965.3,47.2710274]
[1734019279658,15.71874886,3965.4,3965.3,41.37022514]
[1734019279852,15.71874886,3965.4,3965.3,37.20112874]
[1734019280088,15.71874886,3965.4,3965.3,26.64199274]
[1734019280264,15.71874886,3965.4,3965.3,26.813309]
[1734019280464,15.71874886,3965.4,3965.3,24.563309]
[1734019280690,15.71874886,3965.4,3965.3,26.563309]
[1734019280889,15.71874886,3965.4,3965.3,20.167709]
[1734019281096,15.71874886,3965.4,3965.3,8.41094502]
[1734019281295,17.29062375,3965.4,3965.3,0.33]
[1734019281679,0.55,3965.3,3965.2,0.12589514]
[1734019282218,0.55,3965.3,3965.2,0.2045796]
[1734019282418,0.55,3965.3,3965.2,0.12589514]
[1734019282713,15.71874886,3965.4,3965.2,0.12589514]
[1734019283124,15.1522207,3965.4,3965.2,0.12589514]
[1734019283713,15.1522207,3965.4,3964.3,3.0]
[1734019283915,0.55,3965.2,3963.6,2.06664689]
[1734019284496,0.55,3965.0,3963.6,2.06664689]
[1734019284823,0.55,3964.8,3964.1,4.06961448]
[1734019285382,1.5316,3964.9,3964.1,4.06961448]
[1734019285383,3.31129479,3964.5,3964.1,4.06961448]
[1734019285603,2.0179,3964.2,3964.1,1.76725178]
[1734019285786,2.0179,3964.2,3962.1,0.0263]
[1734019286008,0.55,3963.7,3962.1,0.0263]
[1734019286318,5.85360948,3964.4,3961.3,0.13]
[1734019286319,3.31129479,3963.2,3961.4,0.0263]
[1734019286518,0.55,3962.2,3961.1,2.57155473]
[1734019286690,3.07448,3961.2,3961.1,2.41525473]
[1734019286888,0.55,3961.1,3959.2,0.0263]
[1734019287110,0.55,3961.1,3960.7,3.01728878]
[1734019287314,3.86129479,3960.8,3959.2,0.0263]
[1734019287489,0.93612948,3960.7,3958.8,0.26317453]
[1734019288017,0.93612948,3960.7,3960.4,0.91705695]
[1734019288018,2.52491,3960.6,3960.4,0.91705695]
[1734019288316,3.93612948,3960.7,3958.8,0.26317453]
[1734019288317,0.55,3959.6,3958.8,0.26317453]
[1734019288517,3.31129479,3959.5,3957.4,1.4814]
[1734019288717,0.55,3959.4,3957.4,1.4814]
[1734019288918,3.31129479,3958.8,3957.4,1.4814]
[1734019289121,0.55,3958.1,3956.6,1.4765]
[1734019289322,1.4565,3958.7,3955.8,2.0]
[1734019289323,0.55,3956.9,3955.8,1.5342]
[1734019289620,0.55,3956.9,3954.6,2.0]
[1734019289621,0.55,3956.9,3955.9,0.02]
[1734019290035,3.43573733,3958.3,3956.0,1.5086]
[1734019290329,0.55,3958.2,3956.0,1.5086]
[1734019290485,0.55,3958.2,3956.3,8.74]
[1734019290683,0.55,3958.2,3956.6,2.0]
[1734019290916,0.55,3958.2,3956.7,8.74]
[1734019291120,0.55,3958.2,3956.6,5.0]
[1734019291322,0.55,3958.8,3957.0,2.0]
[1734019291522,3.31129479,3960.1,3957.4,2.0]
[1734019291700,1.5425,3960.5,3958.3,2.0]
[1734019292020,2.06649243,3960.5,3958.5,3.0]
[1734019292183,1.5425,3960.5,3958.2,2.0]
[1734019292388,2.51166564,3961.1,3958.6,2.0]
[1734019292645,1.04106564,3961.1,3959.1,4.569]
[1734019292839,1.04106564,3961.1,3959.1,13.309]
[1734019293143,1.04106564,3961.1,3959.5,2.0]
[1734019293688,1.04106564,3961.1,3960.2,4.569]
[1734019293995,1.04106564,3961.1,3961.0,3.4819]
[1734019294241,1.56159847,3961.3,3961.1,3.0]
[1734019294479,2.08213129,3961.5,3961.4,2.0]
[1734019294731,0.28849,3963.5,3962.2,2.0]
[1734019294942,1e-05,3963.5,3962.4,3.0]
[1734019295102,1e-05,3963.5,3962.3,1.4819]
[1734019295291,1e-05,3963.5,3962.4,8.74]
[1734019295488,1e-05,3963.5,3962.6,3.0]
[1734019295789,1e-05,3963.5,3961.7,0.5]
[1734019295790,3.31129479,3965.0,3963.4,2.0]
[1734019296123,3.64242427,3965.0,3963.2,8.74]
[1734019296325,3.64242427,3965.0,3963.1,1.4743]
[1734019296522,0.33112948,3965.0,3963.1,1.4743]
[1734019297289,16.7214207,3965.4,3963.3,2.0]
[1734019297290,0.28862,3963.9,3963.3,2.0]
[1734019297518,15.1522207,3965.4,3963.8,2.0]
[1734019297723,8.8476707,3965.4,3964.4,2.0]
[1734019297898,8.8476707,3965.4,3964.5,8.74]
[1734019298099,8.8476707,3965.4,3964.6,3.0]
[1734019298306,8.8476707,3965.4,3964.4,2.0]
[1734019298307,8.8476707,3965.4,3964.8,3.0]
[1734019298536,8.8476707,3965.4,3965.0,3.0]
[1734019298743,8.8476707,3965.4,3965.2,3.0]
[1734019298920,8.8476707,3965.4,3965.3,21.14634]
[1734019299220,8.8476707,3965.4,3965.3,21.339646]
[1734019299421,8.8476707,3965.4,3965.3,12.599646]
[1734019299622,8.8476707,3965.4,3964.9,1.4587]
[1734019299623,8.8476707,3965.4,3964.9,4.4587]
[1734019299831,8.8476707,3965.4,3964.2,1.5939]
[1734019300791,0.55,3965.3,3964.2,1.5939]
[1734019301825,8.8476707,3965.4,3964.4,2.0]
[1734019302601,8.8476707,3965.4,3964.2,1.5939]
[1734019302803,8.8476707,3965.4,3964.3,3.0]
[1734019303003,8.8476707,3965.4,3964.6,8.74]
[1734019303331,8.8476707,3965.4,3964.7,3.0]
[1734019303901,8.8476707,3965.4,3964.2,1.5939]
[1734019304500,0.55,3965.3,3964.2,3.5939]
[1734019304697,0.55,3965.3,3964.3,8.74]
[1734019305103,0.55,3965.3,3964.4,3.0]
[1734019305702,0.55,3965.3,3964.2,1.5939]
[1734019306107,0.55,3965.3,3963.5,1.5734]
[1734019306400,0.55,3965.3,3963.6,3.0]
[1734019306806,0.55,3965.3,3963.9,2.0]
[1734019307305,8.8476707,3965.4,3963.6,3.0]
[1734019307306,8.8476707,3965.4,3964.5,2.0]
[1734019307620,8.8476707,3965.4,3964.9,2.0]
[1734019307802,8.8476707,3965.4,3965.3,2.0]
[1734019308002,0.8478707,3965.4,3965.3,6.5472]
[1734019308221,0.099,3966.3,3965.8,2.0]
[1734019308530,0.099,3966.3,3963.8,0.12708987]
[1734019308531,0.099,3966.3,3966.2,3.5434]
[1734019308747,0.099,3966.3,3966.2,6.5434]
[1734019309103,0.049,3966.3,3966.2,6.5434]
[1734019309630,0.55,3966.2,3964.4,1.5681]
[1734019310194,1.5397,3965.8,3963.6,1.5701]
[1734019310406,1.5397,3965.8,3962.0,0.25]
[1734019310407,0.55,3965.3,3963.2,8.74]
[1734019310618,3.07193,3965.3,3963.2,8.74]
[1734019310830,0.55,3965.1,3963.6,2.0]
[1734019311038,0.55,3965.1,3963.2,10.74]
[1734019311564,0.55,3965.1,3964.0,2.0]
[1734019311717,0.55,3965.1,3964.1,4.4521]
[1734019311920,0.55,3965.1,3964.4,0.0248]
[1734019312464,0.55,3965.4,3964.4,0.0248]
[1734019312737,1.5397,3965.8,3964.4,0.0248]
[1734019312738,0.55,3965.2,3964.4,0.0248]
[1734019313043,0.55,3965.0,3964.4,0.0248]
[1734019313198,2.52228,3964.7,3964.4,0.0248]
[1734019313404,0.55,3964.3,3961.9,10.74]
[1734019313596,3.07255,3964.3,3962.0,8.74]
[1734019313896,0.55,3964.1,3962.0,8.74]
[1734019314310,0.55,3963.7,3962.0,8.74]
[1734019314491,0.55,3963.7,3962.2,3.0]
[1734019314697,0.55,3963.7,3962.1,3.0]
[1734019315757,3.07303,3963.5,3961.5,0.13]
[1734019316050,0.55,3963.3,3961.5,0.13]
[1734019316201,0.55,3963.3,3961.6,8.74]
[1734019316395,0.55,3963.5,3961.9,8.74]
[1734019316600,0.55,3963.5,3962.0,8.74]
[1734019316822,0.55,3963.5,3961.6,10.74]
[1734019316997,0.55,3963.5,3961.2,1.5834]
[1734019316998,0.55,3963.5,3962.0,2.0]
[1734019317341,0.55,3963.5,3962.0,3.0]
[1734019318426,0.55,3963.5,3962.2,3.0]
[1734019318637,3.1021,3963.6,3962.2,3.0]
[1734019318825,3.1021,3963.6,3962.0,2.0]
[1734019319215,3.56731,3963.6,3961.7,8.74]
[1734019319702,3.1021,3963.6,3961.8,0.02523027]
[1734019319908,0.55,3963.5,3961.8,0.02523027]
[1734019320543,0.55,3963.5,3961.8,3.02523027]
[1734019321142,0.55,3963.5,3962.2,2.0]
[1734019321341,1.55,3963.3,3962.3,0.02522708]
[1734019321736,1.55,3963.3,3962.2,2.02522904]
[1734019322064,1.55,3963.3,3962.2,2.0]
[1734019322244,0.55,3963.2,3961.8,8.74]
[1734019322867,1.55,3963.3,3962.0,2.0]
[1734019323074,1.55,3963.3,3963.1,2.0]
[1734019323215,1.55,3963.3,3963.2,8.74]
[1734019323617,1.55,3963.3,3962.5,8.74]
[1734019323835,1.55,3963.3,3962.1,1.6465]
[1734019324020,1.55,3963.3,3961.4,8.74]
[1734019324021,1.86,3963.3,3961.4,8.74]
[1734019324316,1.86,3963.3,3961.6,0.03]
[1734019324719,1.55,3963.3,3961.6,0.03]
[1734019324919,0.55,3963.2,3961.5,2.0]
[1734019325121,1.55,3963.3,3962.0,2.0]
[1734019325341,1.55,3963.1,3961.6,2.0]
[1734019325548,1.55,3963.1,3961.7,0.03]
[1734019325844,1.55,3963.1,3962.0,2.0]
[1734019326061,1.55,3963.1,3961.7,0.03]
[1734019327170,1.55,3963.1,3961.8,0.02523374]
[1734019327445,1.55,3963.1,3961.8,0.02523103]
[1734019327650,1.55,3963.1,3961.8,2.02523103]
[1734019327882,1.55,3963.1,3962.2,2.0]
[1734019328150,1.55,3963.1,3962.6,2.0]
[1734019328448,1.55,3963.1,3963.0,2.0]
[1734019328616,1.55,3963.1,3963.0,23.797125]
[1734019328812,1.55,3963.1,3963.0,27.145398]
[1734019329216,3.1,3963.6,3963.3,0.55]
[1734019329442,3.1,3963.6,3963.2,1.6136]
[1734019329443,2.08676135,3963.6,3963.5,5.55]
[1734019329778,2.08676135,3963.6,3963.5,43.001622]
[1734019330109,2.08676135,3963.6,3963.5,45.524622]
[1734019330307,2.08676135,3963.6,3963.5,41.741302]
[1734019330508,2.08676135,3963.6,3963.5,38.588495]
[1734019330709,1.5816,3966.2,3964.4,2.0]
[1734019330914,1.5816,3966.2,3964.5,11.84]
[1734019331252,1.5816,3966.2,3964.5,14.3624]
[1734019331413,3.72462001,3966.2,3964.5,14.3624]
[1734019332149,1.5816,3966.2,3965.0,3.0]
[1734019332350,58.9,3966.5,3965.3,3.0]
[1734019332524,58.9,3966.5,3965.5,3.0]
[1734019332711,58.9,3966.5,3965.5,5.5217]
[1734019332911,58.9,3966.5,3965.5,2.5217]
[1734019333111,1.5735,3966.2,3965.5,2.5217]
[1734019333712,0.55,3966.1,3965.5,2.5217]
[1734019334712,1.5735,3966.2,3965.5,2.5217]
[1734019336720,1.5235,3966.2,3965.5,2.5217]
[1734019336975,0.049,3966.3,3965.6,3.0]
[1734019337121,0.049,3966.3,3965.6,5.5217]
[1734019337639,2.60513921,3966.3,3965.6,2.5217]
[1734019338976,0.55,3966.2,3965.6,2.5217]
[1734019339218,0.049,3966.3,3965.6,2.5217]
[1734019340212,0.049,3966.3,3965.7,3.0]
[1734019341359,0.049,3966.3,3965.9,3.0]
[1734019341617,0.049,3966.3,3965.8,8.84]
[1734019341761,2.60513921,3966.3,3965.8,8.84]
[1734019341961,0.049,3966.3,3965.8,8.84]
[1734019342660,0.049,3966.3,3965.9,11.84]
[1734019343062,0.049,3966.3,3966.2,2.0]
[1734019343158,0.049,3966.3,3966.2,46.25382]
[1734019343513,0.049,3966.3,3966.2,47.70382]
[1734019343709,0.049,3966.3,3966.2,44.25382]
[1734019343999,0.049,3966.3,3966.2,38.191314]
[1734019344668,0.049,3966.3,3966.2,38.221314]
[1734019345311,0.049,3966.3,3966.2,22.995857]
[1734019345477,58.899,3966.5,3966.3,3.0]
[1734019345679,58.899,3966.5,3966.4,3.0]
[1734019345878,58.899,3966.5,3966.4,27.96219]
[1734019346078,58.899,3966.5,3966.4,30.48339]
[1734019346337,58.899,3966.5,3966.4,32.09339]
[1734019346696,58.899,3966.5,3966.4,32.12339]
[1734019346900,58.899,3966.5,3966.4,32.67339]
[1734019347284,35.86090904,3966.5,3966.4,30.52339]
[1734019347500,35.22529127,3966.5,3966.4,30.52339]
[1734019348016,27.15189817,3966.5,3966.4,29.55727104]
[1734019348217,25.49697337,3966.5,3966.4,29.30727104]
[1734019348429,25.49697337,3966.5,3966.4,31.05727104]
[1734019348602,25.49697337,3966.5,3966.4,31.30727104]
[1734019348806,25.49697337,3966.5,3966.4,31.43532286]
[1734019348981,19.38535534,3966.5,3966.4,33.75181904]
[1734019349187,16.71869562,3966.5,3966.4,34.53611431]
[1734019349402,16.44624562,3966.5,3966.4,33.74977857]
[1734019349729,7.6359169,3966.5,3966.4,31.43532286]
[1734019350029,7.6359169,3966.5,3966.4,31.18532286]
[1734019350229,1.55,3967.3,3966.8,2.55]
[1734019350531,6.4032153,3966.9,3966.8,8.1009]
[1734019350733,6.32580243,3966.9,3966.8,8.1009]
[1734019351122,6.32580243,3966.9,3966.8,58.8509]
[1734019351311,4.71690243,3966.9,3966.8,59.1009]
[1734019351512,0.58105633,3966.9,3966.8,59.1009]
[1734019351713,0.09170402,3966.9,3966.8,61.16430302]
[1734019351908,1.55,3967.3,3967.2,2.5]
[1734019352113,1.55,3967.3,3967.2,60.73410302]
[1734019352919,1.55,3967.3,3967.2,60.18410302]
[1734019353120,0.25296927,3967.4,3967.3,3.0]
[1734019353324,0.25296927,3967.4,3967.3,56.1206]
[1734019354207,0.25296927,3967.4,3967.3,56.6706]
[1734019354553,1.518,3969.6,3967.9,11.47703073]
[1734019354711,1.5184,3970.3,3969.1,2.0]
[1734019354918,1.5184,3970.3,3969.1,13.44653073]
[1734019355309,1.55,3971.1,3969.1,13.44653073]
[1734019355617,1.55,3971.1,3969.1,13.54653073]
[1734019355618,1.5611,3970.8,3969.1,13.54653073]
[1734019355827,1.5611,3970.8,3969.1,64.59653073]
[1734019356378,1.5611,3970.8,3969.3,0.55]
[1734019356521,1.55,3971.1,3970.5,2.0]
[1734019356867,1.55,3971.1,3970.6,3.0]
[1734019357012,1.55,3971.1,3970.6,5.5185]
[1734019357217,1.55,3971.1,3970.6,7.5185]
[1734019357548,1.55,3971.1,3971.0,2.0]
[1734019357752,1.55,3971.1,3971.0,5.0]
[1734019358050,1.55,3971.1,3970.7,3.0]
[1734019358212,1.55,3971.1,3970.7,5.5184]
[1734019358556,1.55,3971.1,3970.9,3.0]
[1734019358761,1.55,3971.1,3971.0,17.230227]
[1734019358942,1.55,3971.1,3971.0,25.67555773]
[1734019359565,1.55,3971.1,3971.0,26.22555773]
[1734019360952,1.55,3971.1,3971.0,25.67555773]
[1734019361595,1.55,3971.1,3971.0,13.44533073]
[1734019361798,1.55,3971.1,3971.0,28.18304673]
[1734019361997,1.55,3971.1,3971.0,28.62062673]
[1734019362223,1.55,3971.1,3971.0,26.62062673]
[1734019362428,1.55,3971.1,3971.0,28.62062673]
[1734019364439,1.55,3971.1,3971.0,29.17062673]
[1734019364803,1.55,3971.1,3971.0,29.42062673]
[1734019365004,1.55,3971.1,3971.0,29.74434059]
[1734019365208,1.55,3971.1,3971.0,28.62062673]
[1734019365518,1.55,3971.1,3971.0,29.19434059]
[1734019365722,1.50964699,3971.4,3971.3,9.17703073]
[1734019365917,0.89,3971.7,3971.6,2.0]
[1734019366127,9.62,3971.8,3971.7,8.92703073]
[1734019366309,9.62,3971.8,3971.7,62.26854459]
[1734019367007,3.65465024,3972.8,3972.3,2.0]
[1734019367231,3.65465024,3972.8,3972.3,58.0174]
[1734019367786,3.65465024,3972.8,3972.3,58.35778052]
[1734019368096,3.65465024,3972.8,3972.3,64.28481125]
[1734019369549,3.65465024,3972.8,3972.3,64.53481125]
[1734019370186,3.65465024,3972.8,3972.3,64.28481125]
[1734019370688,3.65465024,3972.8,3972.3,21.65616473]
[1734019371099,3.65465024,3972.8,3972.3,21.99654525]
[1734019371702,3.65465024,3972.8,3972.3,22.12494051]
[1734019371991,11.42192065,3972.4,3972.3,25.12494051]
[1734019372331,11.42192065,3972.4,3972.3,13.57282599]
[1734019372532,11.42192065,3972.4,3972.3,13.91320651]
[1734019372768,11.42192065,3972.4,3972.3,13.57282599]
[1734019373096,5.22495101,3972.4,3972.3,13.91320651]
[1734019373236,5.22495101,3972.4,3972.3,13.57282599]
[1734019373431,5.22495101,3972.4,3972.3,13.91320651]
[1734019373633,5.22495101,3972.4,3972.3,64.41320651]
[1734019374185,3.65465024,3972.8,3972.7,7.92703073]
[1734019374329,3.65465024,3972.8,3972.7,13.44423073]
[1734019374809,3.65465024,3972.8,3972.7,63.94423073]
[1734019375000,3.65465024,3972.8,3972.7,35.26177273]
[1734019375370,3.65465024,3972.8,3972.7,35.63884673]
[1734019375962,3.65465024,3972.8,3972.7,29.711816]
[1734019376202,3.65465024,3972.8,3972.7,38.63884673]
[1734019376461,3.65465024,3972.8,3972.7,32.89109673]
[1734019376665,3.65465024,3972.8,3972.7,10.208271]
[1734019376966,3.65465024,3972.8,3972.7,8.702521]
[1734019377164,5.40484564,3972.8,3972.7,1.47474601]
[1734019377484,1.5807,3972.6,3972.3,0.0248]
[1734019377858,1.5807,3972.6,3972.4,13.074339]
[1734019378055,1.5807,3972.6,3972.4,2.5173]
[1734019379109,1.5807,3972.6,3972.5,3.0]
[1734019379680,1.55,3972.9,3972.5,7.916927]
[1734019379894,1.55,3972.9,3972.7,3.0]
[1734019380070,1.55,3972.9,3972.8,20.826076]
[1734019380266,1.55,3972.9,3972.8,5.5171]
[1734019381312,1.55,3972.9,3972.8,61.94413073]
[1734019382480,1.55,3972.9,3972.8,63.41953073]
[1734019382820,1.55,3972.9,3972.8,12.91953073]
[1734019383319,1.55,3972.9,3972.8,14.98311611]
[1734019383535,1.55,3972.9,3972.8,63.41953073]
[1734019384466,1.55,3972.9,3972.8,42.81687273]
[1734019384727,1.55,3972.9,3972.8,36.35450373]
[1734019384923,1.55,3972.9,3972.8,8.9175]
[1734019385131,3.1653,3972.9,3972.8,2.5171]
[1734019386218,3.1653,3972.9,3972.8,13.724675]
[1734019386368,1.55,3972.9,3972.8,16.118414]
[1734019386800,1.55,3972.9,3972.8,12.047516]
[1734019388127,1.55,3972.9,3972.8,19.44994673]
[1734019388677,1.55,3972.9,3972.8,21.51353211]
[1734019389207,1.55,3972.9,3972.8,19.97454673]
[1734019391037,1.55,3972.9,3972.8,14.047516]
[1734019392091,1.55,3972.9,3972.8,2.5171]
[1734019392433,1.88349646,3972.9,3972.8,2.5171]
[1734019392790,3.7246,3972.9,3972.8,2.5171]
[1734019393336,3.7246,3972.9,3971.5,2.59626169]
[1734019393337,1.5123,3972.7,3971.5,2.59626169]
[1734019393567,1.5123,3972.5,3971.2,2.07720054]
[1734019393909,0.55,3972.4,3971.2,2.07720054]
[1734019394111,1.55,3972.9,3969.9,4.53029949]
[1734019394112,0.55,3972.2,3971.1,2.07720054]
[1734019394402,0.55,3972.2,3971.0,2.07720054]
[1734019394403,1.5381,3972.1,3971.0,2.07720054]
[1734019394704,0.55,3971.8,3970.8,2.07720054]
[1734019395001,0.55,3971.4,3970.3,2.07720054]
[1734019395310,0.55,3971.2,3970.1,2.07720054]
[1734019395599,0.55,3971.2,3970.0,2.07720054]
[1734019395600,0.55,3971.0,3970.0,2.07720054]
[1734019395803,0.55,3970.8,3969.9,2.33963059]
[1734019395972,0.55,3970.8,3969.9,0.26243005]
[1734019396174,0.55,3970.8,3970.0,2.07720054]
[1734019396381,1.728392,3970.9,3969.9,5.37739174]
[1734019396589,1.6021,3970.9,3969.9,5.37739174]
[1734019397110,1.6021,3970.9,3970.6,2.59626169]
[1734019397348,1.5211,3972.8,3970.7,16.852549]
[1734019397464,1.55,3972.9,3970.7,2.5184]
[1734019397465,1.5211,3972.6,3970.7,2.5184]
[1734019397666,1.5211,3972.6,3971.2,2.59626169]
[1734019397978,0.12305429,3971.8,3971.3,2.59626169]
[1734019398183,1.5211,3971.7,3971.2,2.59626169]
[1734019398531,1.5211,3971.7,3970.9,2.59626169]
[1734019398746,0.55,3971.6,3970.9,2.59626169]
[1734019399234,0.55,3971.4,3970.9,2.59626169]
[1734019399438,0.55,3971.2,3970.7,2.5184]
[1734019399586,0.55,3971.0,3970.7,2.5184]
[1734019400891,1.5653,3970.9,3970.7,2.5184]
[1734019401116,0.55,3970.8,3970.7,2.5184]
[1734019401334,2.32683,3970.8,3970.7,2.5184]
[1734019401543,2.1153,3970.8,3970.7,2.5184]
[1734019401744,1.5653,3970.8,3970.7,2.5184]
[1734019401918,0.12272738,3971.5,3970.7,2.5184]
[1734019402106,1.6589,3971.9,3970.7,2.5184]
[1734019402929,0.12657479,3971.7,3970.7,2.5184]
[1734019403099,0.12657479,3971.7,3970.9,3.09686671]
[1734019403295,0.12657479,3971.7,3971.0,3.09686671]
[1734019403296,0.55,3971.6,3971.0,3.09686671]
[1734019403503,1.6589,3971.9,3971.1,3.0]
[1734019403703,0.1252633,3972.7,3971.4,3.09686671]
[1734019403986,0.12400095,3973.0,3971.6,3.09686671]
[1734019404253,0.12400095,3973.0,3971.4,2.518]
[1734019404254,1.5795,3973.3,3971.9,3.0]
[1734019404555,1.5795,3973.3,3971.9,2.5177]
[1734019404707,0.12450021,3973.1,3971.9,2.5177]
[1734019405130,1.5795,3972.8,3971.9,2.5177]
[1734019405582,0.55,3972.7,3971.9,1.58324504]
[1734019405867,1.5885,3972.5,3971.9,1.24999146]
[1734019406064,0.55,3972.4,3971.9,1.24999146]
[1734019407032,1.5885,3972.5,3971.9,1.24999146]
[1734019407230,1.74735,3972.5,3971.9,1.24999146]
[1734019407461,1.74735,3972.5,3970.1,0.26257645]
[1734019407462,1.6148,3972.4,3970.6,3.66134525]
[1734019407668,1.6148,3972.4,3970.5,3.66134525]
[1734019407863,1.6148,3972.4,3969.7,1.5214]
[1734019408269,0.55,3972.3,3969.7,1.5214]
[1734019408466,0.12741431,3972.6,3969.7,5.18274525]
[1734019408467,1.5617,3972.0,3969.7,5.18274525]
[1734019408649,0.55,3971.9,3969.8,0.01774976]
[1734019408855,0.55,3971.9,3969.8,6.68652191]
[1734019409054,1.5617,3971.8,3969.8,3.0]
[1734019409227,0.12741431,3972.6,3969.8,3.0]
[1734019409228,0.55,3971.5,3969.8,3.0]
[1734019409441,0.55,3971.5,3969.3,1.86509872]
[1734019409681,0.55,3971.5,3969.3,4.86509872]
[1734019409981,0.55,3971.5,3969.7,3.0]
[1734019410666,0.55,3971.5,3969.5,3.0]
[1734019410973,0.55,3971.5,3969.3,4.86509872]
[1734019411128,0.55,3971.5,3969.3,8.52646539]
[1734019411325,0.55,3971.5,3969.5,6.66136667]
[1734019411526,0.77388413,3971.5,3969.4,3.0]
[1734019411798,0.55,3971.3,3969.3,1.86509872]
[1734019412000,0.55,3971.1,3969.4,2.5186]
[1734019412187,1.5988,3970.8,3969.4,2.5186]
[1734019412362,1.5988,3970.6,3969.4,2.5186]
[1734019412543,0.55,3970.7,3969.4,2.5186]
[1734019412747,0.55,3970.3,3969.4,2.5186]
[1734019412944,0.55,3970.1,3969.4,2.5186]
[1734019416967,1.5244,3971.9,3969.4,2.5186]
[1734019418132,0.55,3971.6,3969.4,2.5186]
[1734019418338,1.658,3971.6,3969.4,2.5186]
[1734019418537,1.5447,3971.3,3969.4,2.5186]
[1734019418734,1.5447,3970.9,3969.4,2.5186]
[1734019419072,0.55,3970.8,3969.5,3.0]
[1734019419230,0.55,3970.8,3969.5,5.5192]
[1734019419430,0.55,3970.8,3969.5,2.5192]
[1734019420160,1.6334,3970.5,3969.5,2.5192]
[1734019420327,0.55,3970.4,3969.5,2.5192]
[1734019420534,1.6334,3970.3,3969.5,2.5192]
[1734019420772,0.55,3970.4,3969.5,2.5192]
[1734019420773,1.6334,3970.1,3969.5,2.5192]
[1734019421267,0.55,3970.0,3969.5,2.5192]
[1734019421675,0.55,3969.8,3969.5,2.5192]
[1734019422548,1.6334,3971.4,3969.5,2.5192]
[1734019423170,1.6334,3971.4,3969.6,0.06]
[1734019423372,1.6334,3971.4,3969.6,2.5791]
[1734019423559,1.6334,3970.6,3969.6,2.5791]
[1734019425381,0.55,3970.5,3969.6,2.5791]
[1734019426381,0.55,3970.5,3969.6,2.5191]
[1734019427413,1.6334,3970.6,3969.6,2.5191]
[1734019427588,0.55,3970.5,3969.7,0.06]
[1734019428207,0.76834,3970.5,3969.7,0.06]
[1734019428488,0.76834,3970.5,3969.6,2.5191]
[1734019428489,0.55,3970.1,3969.6,2.5191]
[1734019429973,3.55,3969.9,3969.6,0.71262251]
[1734019430177,4.1039,3970.0,3969.3,0.26259872]
[1734019430178,0.55,3969.7,3969.3,0.26259872]
[1734019430348,1.585,3969.5,3967.2,4.31648868]
[1734019430571,1.585,3969.5,3966.8,1.5018]
[1734019430572,1.585,3969.1,3966.8,1.5018]
[1734019430872,1.585,3968.9,3966.8,1.5018]
[1734019431078,0.55,3968.4,3966.2,1.6368]
[1734019431301,0.55,3968.2,3966.2,1.6368]
[1734019431979,1.6635,3967.9,3965.3,1.5397]
[1734019432294,0.55,3967.4,3966.2,2.5207]
[1734019432499,5.44065056,3969.2,3966.3,1.5397]
[1734019432818,3.55,3969.1,3966.3,4.0609]
[1734019433378,2.51866,3970.4,3966.4,1.5397]
[1734019433379,3.30940079,3970.4,3966.4,1.5397]
[1734019433705,3.30940079,3969.7,3966.8,4.5203]
[1734019433890,0.12297516,3969.5,3966.9,3.0]
[1734019434100,0.12297516,3969.5,3966.9,5.5209]
[1734019434430,0.12297516,3969.5,3967.0,1.5328]
[1734019434782,0.12297516,3969.5,3967.1,3.0]